bitfinex-derivatives/quotes_BTCF0:USTF0_20250324
["timestamp","ask_amount","ask_price","bid_price","bid_amount"]
[1742839510117,0.67776788,88484.0,88483.0,0.2912337]
[1742839510321,0.56475538,88484.0,88483.0,0.2912337]
[1742839510513,0.67776788,88484.0,88483.0,0.2912337]
[1742839511221,0.58346788,88484.0,88483.0,0.2912337]
[1742839512028,0.47045538,88484.0,88483.0,0.30313716]
[1742839512611,0.47045538,88484.0,88483.0,0.31313716]
[1742839513216,0.17421697,88484.0,88483.0,0.31313716]
[1742839513716,0.005,88484.0,88483.0,0.31313716]
[1742839515512,0.0856,88487.0,88486.0,0.1130099]
[1742839515704,0.0856,88487.0,88486.0,0.1745299]
[1742839515910,0.0856,88487.0,88486.0,0.3518299]
[1742839516709,0.0876,88487.0,88486.0,0.3518299]
[1742839520821,0.1774,88487.0,88486.0,0.3518299]
[1742839525717,0.1774,88487.0,88486.0,0.2623299]
[1742839525921,0.1774,88487.0,88486.0,0.3482299]
[1742839527825,0.1774,88487.0,88486.0,0.1745299]
[1742839528523,0.1774,88487.0,88486.0,0.3462299]
[1742839531424,0.1774,88487.0,88486.0,0.2603299]
[1742839532428,0.1774,88487.0,88486.0,0.1745299]
[1742839532429,0.2904086,88487.0,88486.0,0.1745299]
[1742839534237,0.1774,88487.0,88486.0,0.1745299]
[1742839535034,0.2904086,88487.0,88486.0,0.1745299]
[1742839535534,0.1774,88487.0,88486.0,0.1745299]
[1742839535736,0.2904086,88487.0,88486.0,0.1745299]
[1742839537936,0.29951961,88487.0,88486.0,0.1745299]
[1742839538631,0.41253119,88487.0,88486.0,0.06152]
[1742839539034,0.42135162,88487.0,88486.0,0.00152]
[1742839539623,0.42135162,88487.0,88486.0,0.1145299]
[1742839540337,0.30834302,88487.0,88486.0,0.2007299]
[1742839540534,0.30834302,88487.0,88486.0,0.2207299]
[1742839540932,0.42135162,88487.0,88486.0,0.3066299]
[1742839541534,0.42135162,88487.0,88486.0,0.4066299]
[1742839542237,0.42144006,88487.0,88486.0,0.4066299]
[1742839542429,0.42144006,88487.0,88486.0,0.3207299]
[1742839543533,0.30843146,88487.0,88486.0,0.3207299]
[1742839543733,0.19541988,88487.0,88486.0,0.3207299]
[1742839543934,0.19541988,88487.0,88486.0,0.4105299]
[1742839544132,0.18651101,88487.0,88486.0,0.4105299]
[1742839544939,0.29951961,88487.0,88486.0,0.4105299]
[1742839545329,0.2904086,88487.0,88486.0,0.4105299]
[1742839545730,0.42597733,88487.0,88486.0,0.4105299]
[1742839547237,0.42597733,88487.0,88486.0,0.29752]
[1742839547437,0.42597733,88487.0,88486.0,0.2345299]
[1742839548141,0.42597733,88487.0,88486.0,0.3192299]
[1742839549037,0.2904086,88487.0,88486.0,0.4079299]
[1742839549640,0.2904086,88487.0,88486.0,0.2345299]
[1742839551042,0.40342018,88487.0,88486.0,0.12152]
[1742839553041,0.40342018,88487.0,88486.0,0.02152]
[1742839554537,0.40342018,88487.0,88486.0,0.12152]
[1742839556640,0.40342018,88487.0,88486.0,0.02152]
[1742839556841,0.40342018,88487.0,88486.0,0.02]
[1742839557541,0.40342018,88487.0,88486.0,0.02152]
[1742839557951,0.40342018,88487.0,88486.0,0.02]
[1742839558249,0.41521826,88487.0,88486.0,0.02]
[1742839563456,0.41521826,88487.0,88486.0,0.03145813]
[1742839564951,0.41521826,88487.0,88486.0,0.03297813]
[1742839565146,0.41521826,88487.0,88486.0,0.03145813]
[1742839566153,0.1130291,88471.0,88470.0,0.20186027]
[1742839566345,0.1130291,88471.0,88470.0,0.41509857]
[1742839566742,0.2902291,88471.0,88470.0,0.41509857]
[1742839566949,0.41492515,88471.0,88470.0,0.41509857]
[1742839567356,0.41492515,88471.0,88470.0,0.41609857]
[1742839568457,0.41492515,88471.0,88470.0,0.41809857]
[1742839568760,0.41492515,88471.0,88470.0,0.41709857]
[1742839568961,0.58414212,88471.0,88470.0,0.41609857]
[1742839569252,0.58414212,88471.0,88470.0,0.2142383]
[1742839569658,0.58414212,88471.0,88470.0,0.2127183]
[1742839570455,0.58414212,88471.0,88470.0,0.2142383]
[1742839570861,0.58414212,88471.0,88470.0,0.2132383]
[1742839571259,0.41492515,88471.0,88470.0,0.2132383]
[1742839573158,0.40324068,88471.0,88470.0,0.2132383]
[1742839575657,0.10142627,88472.0,88470.0,0.2697534]
[1742839575864,0.10142627,88472.0,88471.0,0.1130291]
[1742839576161,0.1817,88487.0,88476.0,0.1130227]
[1742839576367,0.0565057,88485.0,88476.0,0.7053427]
[1742839576667,0.0891,88487.0,88476.0,0.9784427]
[1742839576865,0.0004,88488.0,88482.0,0.113015]
[1742839577056,0.0862,88487.0,88482.0,0.284575]
[1742839577258,0.16921697,88484.0,88483.0,0.1130137]
[1742839577458,0.16921697,88484.0,88483.0,0.4156337]
[1742839578352,0.17021697,88484.0,88483.0,0.4156337]
[1742839579755,0.17021697,88484.0,88483.0,0.7056337]
[1742839580267,0.16921697,88484.0,88483.0,0.7066337]
[1742839580667,0.0862,88487.0,88486.0,0.1130099]
[1742839580856,0.0862,88487.0,88486.0,0.6346099]
[1742839581057,0.0862,88487.0,88486.0,0.9030099]
[1742839581964,0.1796,88487.0,88486.0,0.9030099]
[1742839582362,0.2926086,88487.0,88486.0,0.91472547]
[1742839582558,0.2926086,88487.0,88486.0,0.91572547]
[1742839584365,0.1796,88487.0,88486.0,0.91572547]
[1742839584669,0.2926086,88487.0,88486.0,0.91572547]
[1742839585066,0.2926086,88487.0,88486.0,0.82082547]
[1742839585757,0.40562018,88487.0,88486.0,0.5226]
[1742839586162,0.1130265,88473.0,88472.0,0.96186027]
[1742839586357,0.1130265,88473.0,88472.0,0.52294027]
[1742839586665,0.20206651,88473.0,88472.0,0.52294027]
[1742839586866,0.31507809,88473.0,88472.0,0.53448884]
[1742839587266,0.32693166,88473.0,88472.0,0.52294027]
[1742839587564,0.32693166,88473.0,88472.0,0.32108]
[1742839588873,0.32693166,88473.0,88472.0,0.32208]
[1742839589261,0.50553166,88473.0,88472.0,0.32208]
[1742839589464,0.50553166,88473.0,88472.0,0.32308]
[1742839590063,0.49367809,88473.0,88472.0,0.32308]
[1742839590460,0.50535075,88473.0,88472.0,0.32308]
[1742839590972,0.50535075,88473.0,88472.0,0.40828]
[1742839591161,0.40717809,88473.0,88472.0,0.40828]
[1742839591367,0.40717809,88473.0,88472.0,0.41828]
[1742839591568,0.40717809,88473.0,88472.0,0.50278]
[1742839592371,0.40717809,88473.0,88472.0,0.6158078]
[1742839592969,0.11405159,88473.0,88472.0,0.6158078]
[1742839593176,0.00104001,88473.0,88472.0,0.6158078]
[1742839594591,0.1788552,88474.0,88473.0,0.1130265]
[1742839594771,0.1788552,88474.0,88473.0,0.6441465]
[1742839594965,0.1788552,88474.0,88473.0,0.8180465]
[1742839596077,0.1788552,88474.0,88473.0,0.8190465]
[1742839596673,0.1788552,88474.0,88473.0,0.8200465]
[1742839597074,0.2657552,88474.0,88473.0,0.8200465]
[1742839598781,0.26679521,88474.0,88473.0,0.8200465]
[1742839599275,0.15377001,88474.0,88473.0,0.8200465]
[1742839599978,0.06687001,88474.0,88473.0,0.8200465]
[1742839600780,0.4173049,88487.0,88473.0,0.8200465]
[1742839600781,0.056507,88483.0,88473.0,0.70702]
[1742839600982,0.0565052,88486.0,88485.0,0.1130112]
[1742839601278,0.05790521,88486.0,88485.0,0.4844112]
[1742839601485,0.17092765,88486.0,88485.0,0.4844112]
[1742839601683,0.17092765,88486.0,88485.0,0.3714]
[1742839602182,0.26412765,88486.0,88485.0,0.3714]
[1742839604874,0.26412765,88486.0,88485.0,0.3614]
[1742839605872,0.35492765,88486.0,88485.0,0.3614]
[1742839610584,0.35492765,88486.0,88485.0,0.3714]
[1742839612386,0.35492765,88486.0,88485.0,0.38276378]
[1742839612695,0.35492765,88486.0,88485.0,0.3614]
[1742839615802,0.1130252,88474.0,88473.0,0.20186027]
[1742839616099,0.4738252,88474.0,88473.0,0.64278027]
[1742839616393,0.73442521,88474.0,88473.0,0.64278027]
[1742839616593,0.8474534,88474.0,88473.0,0.64278027]
[1742839616798,0.8474534,88474.0,88473.0,0.27092]
[1742839617109,0.113038,88464.0,88459.0,0.90638065]
[1742839617395,0.60372695,88464.0,88463.0,0.32080955]
[1742839617789,0.71675514,88464.0,88463.0,0.32080955]
[1742839617992,0.89215514,88464.0,88463.0,0.32080955]
[1742839619902,0.90084674,88464.0,88463.0,0.32080955]
[1742839620194,1.26164674,88464.0,88463.0,0.32380955]
[1742839620797,1.26164674,88464.0,88463.0,0.32680955]
[1742839622001,1.26164674,88464.0,88449.0,0.5]
[1742839622002,0.1130559,88450.0,88449.0,0.5]
[1742839622200,0.4745759,88450.0,88449.0,0.51076]
[1742839622796,0.76851687,88450.0,88449.0,0.59946]
[1742839623405,0.76951687,88450.0,88449.0,0.61046]
[1742839628592,0.76951687,88450.0,88449.0,0.69766]
[1742839629104,0.58861687,88450.0,88449.0,0.70766]
[1742839629303,0.68131687,88450.0,88449.0,0.79406]
[1742839629808,0.76741687,88450.0,88449.0,0.79406]
[1742839630796,0.76741687,88450.0,88449.0,0.70686]
[1742839632701,0.1130661,88442.0,88435.0,0.79]
[1742839633004,0.4738738,88436.0,88435.0,0.33064]
[1742839633195,0.5922338,88436.0,88435.0,0.33064]
[1742839633393,0.7673338,88436.0,88435.0,0.33064]
[1742839633598,0.7673338,88436.0,88435.0,0.34064]
[1742839634000,0.88040672,88436.0,88435.0,0.34664]
[1742839634509,0.88040672,88436.0,88435.0,0.34864]
[1742839635110,0.89195268,88436.0,88435.0,0.34864]
[1742839635700,0.89195268,88436.0,88435.0,0.34564]
[1742839637811,0.89195268,88436.0,88435.0,0.33564]
[1742839638007,0.89195268,88436.0,88427.0,0.00016955]
[1742839638008,0.0565388,88434.0,88427.0,0.00016955]
[1742839638200,0.1131019,88414.0,88413.0,0.06]
[1742839638405,0.5912619,88414.0,88413.0,0.2]
[1742839638607,0.70545867,88414.0,88413.0,0.2006]
[1742839638807,0.70545867,88414.0,88413.0,0.2]
[1742839639001,0.88045867,88414.0,88413.0,0.2]
[1742839640115,0.88045867,88414.0,88413.0,0.2006]
[1742839642312,0.1131109,88407.0,88406.0,0.0924]
[1742839642517,0.1131109,88407.0,88406.0,0.243]
[1742839642518,0.4752709,88407.0,88406.0,0.243]
[1742839642708,0.4752709,88407.0,88406.0,0.2436]
[1742839643014,0.58837579,88407.0,88406.0,0.243]
[1742839643217,0.76877579,88407.0,88406.0,0.3356]
[1742839643416,0.7802083,88407.0,88406.0,0.3356]
[1742839643613,0.1131186,88401.0,88400.0,0.0875]
[1742839643817,0.2319586,88401.0,88400.0,0.4075]
[1742839644007,0.1145986,88401.0,88400.0,0.4075]
[1742839644208,0.2319586,88401.0,88400.0,0.4075]
[1742839644404,0.34507245,88401.0,88400.0,0.4075]
[1742839645119,0.43517245,88401.0,88400.0,0.4928]
[1742839645715,0.43517245,88401.0,88400.0,0.4958]
[1742839646923,0.43517245,88401.0,88400.0,0.5802]
[1742839649215,0.43517245,88401.0,88400.0,0.323]
[1742839649622,0.43517245,88401.0,88400.0,0.4934]
[1742839650629,0.52257245,88401.0,88400.0,0.4934]
[1742839652022,0.52257245,88401.0,88400.0,0.5845]
[1742839652224,0.22771245,88401.0,88400.0,0.5845]
[1742839652619,0.40771245,88401.0,88400.0,0.5845]
[1742839656625,0.22771245,88401.0,88400.0,0.5845]
[1742839656927,0.22771245,88401.0,88400.0,0.6976199]
[1742839658228,0.11459385,88401.0,88400.0,0.7076199]
[1742839658526,0.11459385,88401.0,88400.0,0.5945]
[1742839658527,0.22771245,88401.0,88400.0,0.5945]
[1742839658930,0.22771245,88401.0,88400.0,0.7076199]
[1742839659229,0.22771245,88401.0,88400.0,0.5945]
[1742839659623,0.31301245,88401.0,88400.0,0.5945]
[1742839660028,0.39791245,88401.0,88400.0,0.5945]
[1742839662332,0.39791245,88401.0,88400.0,0.6976199]
[1742839662533,0.22771245,88401.0,88400.0,0.6976199]
[1742839665131,0.31441245,88401.0,88400.0,0.6976199]
[1742839665326,0.31441245,88401.0,88400.0,0.5845]
[1742839665525,0.39981245,88401.0,88400.0,0.5845]
[1742839666928,0.48811245,88401.0,88400.0,0.5845]
[1742839667128,0.39981245,88401.0,88400.0,0.5845]
[1742839667334,0.39981245,88401.0,88400.0,0.323]
[1742839670519,0.40181245,88401.0,88400.0,0.323]
[1742839671135,0.40181245,88401.0,88400.0,0.17683298]
[1742839671329,0.40481245,88401.0,88400.0,0.17683298]
[1742839674231,0.40481245,88401.0,88400.0,0.14464218]
[1742839674430,0.1131199,88400.0,88399.0,7e-08]
[1742839674632,0.11467991,88400.0,88399.0,7e-08]
[1742839674829,0.29007991,88400.0,88399.0,7e-08]
[1742839675134,0.40320144,88400.0,88399.0,7e-08]
[1742839675735,0.40720144,88400.0,88399.0,7e-08]
[1742839676924,0.1131288,88393.0,88392.0,2e-08]
[1742839677141,0.5927288,88393.0,88392.0,0.07000002]
[1742839677533,0.96416057,88393.0,88392.0,0.07000002]
[1742839678131,0.96516057,88393.0,88392.0,0.07000002]
[1742839679231,1.0201722,88393.0,88392.0,0.03395212]
[1742839679436,1.0201722,88393.0,88392.0,0.04395212]
[1742839680436,1.0201722,88393.0,88392.0,2e-08]
[1742839682336,1.0201722,88393.0,88392.0,0.01000002]
[1742839682536,0.9367722,88393.0,88392.0,0.01000002]
[1742839683232,0.8194522,88393.0,88392.0,0.01000002]
[1742839683439,0.6445522,88393.0,88392.0,0.01000002]
[1742839683749,0.77813947,88393.0,88392.0,0.01000002]
[1742839683938,0.77813947,88393.0,88392.0,0.38703012]
[1742839684340,0.77813947,88393.0,88392.0,0.27390002]
[1742839685134,0.94633947,88393.0,88392.0,0.01000002]
[1742839685333,1.03003947,88393.0,88392.0,0.01000002]
[1742839687144,1.39083947,88393.0,88392.0,0.01000002]
[1742839687439,1.39183947,88393.0,88392.0,0.01000002]
[1742839687639,1.20324057,88393.0,88392.0,0.01000002]
[1742839689141,1.11854057,88393.0,88392.0,0.01000002]
[1742839692047,1.23582057,88393.0,88392.0,0.01000002]
[1742839696744,1.23582057,88393.0,88392.0,0.02000002]
[1742839696949,0.0565721,88381.0,88378.0,0.09]
[1742839697145,0.4739467,88379.0,88378.0,0.05]
[1742839697449,0.5927067,88379.0,88378.0,0.05]
[1742839697650,0.88075639,88379.0,88378.0,0.05]
[1742839697862,0.88075639,88379.0,88378.0,0.013386]
[1742839698150,0.1131595,88369.0,88368.0,0.0896]
[1742839698347,0.1131595,88369.0,88368.0,0.3596]
[1742839698348,0.60420039,88369.0,88368.0,0.3596]
[1742839698546,0.60420039,88369.0,88368.0,0.27]
[1742839698547,0.77910039,88369.0,88368.0,0.27]
[1742839698740,0.89226288,88369.0,88368.0,0.27]
[1742839699153,0.89226288,88369.0,88368.0,0.3596]
[1742839700553,0.89226288,88369.0,88368.0,0.4488]
[1742839700755,0.89226288,88369.0,88368.0,0.4498]
[1742839701453,0.89226288,88369.0,88368.0,0.3606]
[1742839701655,0.89226288,88369.0,88368.0,0.271]
[1742839702153,0.95590926,88369.0,88368.0,0.271]
[1742839702646,0.95590926,88369.0,88368.0,0.191]
[1742839702848,0.95590926,88369.0,88368.0,0.160885]
[1742839703556,0.95590926,88369.0,88368.0,0.1286893]
[1742839703757,0.1131826,88351.0,88350.0,0.1303683]
[1742839703944,0.9535426,88351.0,88350.0,0.1803683]
[1742839704458,1.06670509,88351.0,88350.0,0.1803683]
[1742839707166,1.06670509,88351.0,88350.0,0.1813683]
[1742839707660,1.06670509,88351.0,88350.0,0.1254409]
[1742839707960,1.06670509,88351.0,88350.0,1e-07]
[1742839708156,1.06670509,88351.0,88350.0,0.0100001]
[1742839708456,1.06670509,88351.0,88336.0,0.07]
[1742839708457,0.1132018,88336.0,88325.0,0.1686]
[1742839708759,0.5927618,88336.0,88335.0,0.14045282]
[1742839709255,1.06674735,88336.0,88335.0,0.14045282]
[1742839709452,1.23034735,88336.0,88335.0,0.14045282]
[1742839709652,1.24165643,88336.0,88335.0,0.14045282]
[1742839717666,1.12437643,88336.0,88335.0,0.14045282]
[1742839719168,1.04327643,88336.0,88335.0,0.14045282]
[1742839719554,0.96077643,88336.0,88335.0,0.14045282]
[1742839719755,0.96077643,88336.0,88335.0,0.25365592]
[1742839720461,0.96073308,88336.0,88335.0,0.25365592]
[1742839720667,0.59993308,88336.0,88335.0,0.25365592]
[1742839720961,0.59993308,88336.0,88335.0,0.34015592]
[1742839721166,0.59993308,88336.0,88335.0,0.22695282]
[1742839722269,0.59993308,88336.0,88335.0,0.34015592]
[1742839724765,0.59993308,88336.0,88335.0,0.22695282]
[1742839724956,0.59993308,88336.0,88335.0,0.34015592]
[1742839726063,0.59993308,88336.0,88335.0,0.35462209]
[1742839726265,0.59993308,88336.0,88335.0,0.43622209]
[1742839726473,0.59993308,88336.0,88335.0,0.32301899]
[1742839726857,0.68403308,88336.0,88335.0,0.32301899]
[1742839727158,0.77163308,88336.0,88335.0,0.32301899]
[1742839728362,0.59993308,88336.0,88335.0,0.32301899]
[1742839729268,0.59993308,88336.0,88335.0,0.43622209]
[1742839729466,0.68403308,88336.0,88335.0,0.32301899]
[1742839729678,0.76713308,88336.0,88335.0,0.42175592]
[1742839730966,0.76713308,88336.0,88335.0,0.30855282]
[1742839734576,0.76713308,88336.0,88335.0,0.14045282]
[1742839735073,1.12793308,88336.0,88335.0,0.09243582]
[1742839736678,1.18298621,88336.0,88335.0,0.09243582]
[1742839739575,1.30018621,88336.0,88335.0,0.09243582]
[1742839743070,1.30018621,88336.0,88335.0,0.08243582]
[1742839743271,1.30018621,88336.0,88335.0,0.09243582]
[1742839743671,1.30118621,88336.0,88335.0,0.09243582]
[1742839746381,1.42691011,88336.0,88335.0,0.09243582]
[1742839755085,1.42691011,88336.0,88335.0,0.08243582]
[1742839759089,1.30971011,88336.0,88335.0,0.09243582]
[1742839759488,1.22561011,88336.0,88335.0,0.09243582]
[1742839759894,1.14251011,88336.0,88335.0,0.09243582]
[1742839760490,1.31161011,88336.0,88335.0,0.09243582]
[1742839762093,1.18588621,88336.0,88335.0,0.09243582]
[1742839762603,1.01678621,88336.0,88335.0,0.20563892]
[1742839762789,0.90362776,88336.0,88335.0,0.20563892]
[1742839763292,1.01682956,88336.0,88335.0,0.26303582]
[1742839763600,1.01682956,88336.0,88335.0,0.37623892]
[1742839766585,1.01682956,88336.0,88335.0,0.26303582]
[1742839767490,1.01682956,88336.0,88335.0,0.37623892]
[1742839767890,1.01682956,88336.0,88335.0,0.26303582]
[1742839768090,1.01682956,88336.0,88335.0,0.37623892]
[1742839769999,0.89231868,88336.0,88335.0,0.37623892]
[1742839770305,0.1697926,88342.0,88341.0,0.1697898]
[1742839770500,0.1697926,88342.0,88341.0,0.7285898]
[1742839770696,0.2263921,88342.0,88341.0,0.615397]
[1742839770903,0.22743211,88342.0,88341.0,0.615397]
[1742839771203,0.33958918,88342.0,88341.0,0.615397]
[1742839771404,0.35210905,88342.0,88341.0,0.615397]
[1742839772103,0.34370919,88342.0,88341.0,0.615397]
[1742839772498,0.34470919,88342.0,88341.0,0.615397]
[1742839773399,0.11302434,88342.0,88341.0,0.7385898]
[1742839773699,0.26921946,88356.0,88346.0,0.0565941]
[1742839773896,0.34931274,88350.0,88349.0,0.4739852]
[1742839774097,0.23612724,88350.0,88349.0,0.8847052]
[1742839774308,0.11379709,88350.0,88349.0,1.0674052]
[1742839774606,0.22638098,88350.0,88349.0,1.0674052]
[1742839774793,0.22706098,88350.0,88349.0,1.0674052]
[1742839775295,0.23106098,88350.0,88349.0,1.0674052]
[1742839775696,0.23406098,88350.0,88349.0,1.0674052]
[1742839776499,0.23006098,88350.0,88349.0,1.0674052]
[1742839776801,0.23406098,88350.0,88349.0,1.0674052]
[1742839783315,0.33016098,88350.0,88349.0,1.0674052]
[1742839784002,0.33016098,88350.0,88349.0,1.1844452]
[1742839784203,0.41976098,88350.0,88349.0,1.1844452]
[1742839794720,0.41976098,88350.0,88349.0,1.0674052]
[1742839797711,0.41976098,88350.0,88349.0,1.0574052]
[1742839797912,0.41976098,88350.0,88349.0,1.0674052]
[1742839800516,0.41976098,88350.0,88349.0,0.8847052]
[1742839803122,0.41576098,88350.0,88349.0,0.8847052]
[1742839803317,0.41476098,88350.0,88349.0,0.8847052]
[1742839809716,0.41476098,88350.0,88349.0,0.8747052]
[1742839809917,0.41476098,88350.0,88349.0,0.8847052]
[1742839811423,0.41476098,88350.0,88349.0,0.9785052]
[1742839812234,0.41476098,88350.0,88349.0,1.0684052]
[1742839814732,0.00016976,88358.0,88357.0,0.1131749]
[1742839814930,0.00084976,88358.0,88357.0,0.99859793]
[1742839815235,0.11402336,88358.0,88357.0,0.99955711]
[1742839815531,0.11402336,88358.0,88357.0,1.18625711]
[1742839816032,0.11802336,88358.0,88357.0,1.18625337]
[1742839816432,0.11802336,88358.0,88357.0,1.1716349]
[1742839817427,0.12002336,88358.0,88357.0,1.1716349]
[1742839820038,0.29692336,88358.0,88357.0,1.1716349]
[1742839821035,0.41009994,88358.0,88357.0,0.87176]
[1742839821337,0.41009994,88358.0,88357.0,0.86176]
[1742839826240,0.41009994,88358.0,88357.0,0.50096]
[1742839836342,0.5821299,88358.0,88357.0,0.50096]
[1742839836544,0.5821299,88358.0,88357.0,1e-08]
[1742839836740,0.5821299,88358.0,88345.0,0.0926]
[1742839836741,0.113189,88346.0,88345.0,0.0926]
[1742839836945,0.11378901,88346.0,88345.0,0.5903]
[1742839837433,0.41386559,88346.0,88345.0,0.5903]
[1742839837634,0.41386559,88346.0,88345.0,0.4106]
[1742839837836,0.1132069,88332.0,88331.0,0.20341804]
[1742839838148,0.4740069,88332.0,88331.0,0.23405804]
[1742839838342,0.4747669,88332.0,88331.0,0.23405804]
[1742839838539,0.86155885,88332.0,88331.0,0.23405804]
[1742839839441,0.86155885,88332.0,88331.0,0.23505804]
[1742839840749,0.86155885,88332.0,88331.0,0.03164]
[1742839840945,0.86155885,88332.0,88331.0,0.031]
[1742839842051,0.97835885,88332.0,88331.0,0.031]
[1742839842452,0.98987135,88332.0,88331.0,0.031]
[1742839847253,0.42557135,88332.0,88331.0,0.031]
[1742839847450,0.33317135,88332.0,88331.0,0.3918]
[1742839847755,0.23867135,88332.0,88331.0,0.3924]
[1742839847945,0.11395195,88332.0,88331.0,0.5056082]
[1742839848149,0.11319195,88332.0,88331.0,0.5056082]
[1742839848450,0.0008,88332.0,88331.0,0.6900082]
[1742839848650,0.1131981,88339.0,88338.0,0.0565996]
[1742839848851,0.1131981,88339.0,88338.0,0.3571996]
[1742839849251,0.22640799,88339.0,88338.0,0.3571996]
[1742839849455,0.22716799,88339.0,88338.0,0.5372996]
[1742839850951,0.22816799,88339.0,88338.0,0.5372996]
[1742839851554,0.22716799,88339.0,88338.0,0.5372996]
[1742839851756,0.22716799,88339.0,88338.0,0.5382996]
[1742839852554,0.22716799,88339.0,88338.0,0.5372996]
[1742839854155,0.22716799,88339.0,88338.0,0.5382996]
[1742839854864,0.22716799,88339.0,88338.0,0.5372996]
[1742839855159,0.22716799,88339.0,88338.0,0.5382996]
[1742839857155,0.22716799,88339.0,88338.0,0.5372996]
[1742839857356,0.22716799,88339.0,88338.0,0.5382996]
[1742839858862,0.22716799,88339.0,88338.0,0.5372996]
[1742839861157,0.40556799,88339.0,88338.0,0.5938993]
[1742839863164,0.40556799,88339.0,88338.0,0.4807]
[1742839863870,0.40556799,88339.0,88338.0,0.5938993]
[1742839864164,0.40556799,88339.0,88338.0,0.4807]
[1742839864357,0.40556799,88339.0,88338.0,0.3006]
[1742839865856,0.40656799,88339.0,88338.0,0.3006]
[1742839874982,0.57600301,88339.0,88338.0,0.3006]
[1742839878578,0.40656799,88339.0,88338.0,0.3006]
[1742839878780,0.46161407,88339.0,88338.0,0.3006]
[1742839879491,0.46161407,88339.0,88338.0,0.6614]
[1742839879683,0.46161407,88339.0,88338.0,0.7745993]
[1742839879684,0.17001597,88339.0,88338.0,0.7745993]
[1742839879892,0.28321397,88339.0,88338.0,0.7745993]
[1742839880086,0.28321397,88339.0,88338.0,0.9600993]
[1742839881293,0.28221397,88339.0,88338.0,0.9620993]
[1742839882098,0.36273622,88339.0,88338.0,0.9620993]
[1742839882803,0.36273622,88339.0,88338.0,0.9600993]
[1742839883005,0.36273622,88339.0,88338.0,0.9610993]
[1742839883504,0.24953822,88339.0,88338.0,0.9610993]
[1742839883800,0.36273622,88339.0,88338.0,0.9610993]
[1742839884399,0.36273622,88339.0,88338.0,0.9600993]
[1742839884703,0.36273622,88339.0,88338.0,0.9610993]
[1742839885701,0.22716789,88339.0,88338.0,0.9610993]
[1742839887309,0.11396989,88339.0,88338.0,0.9610993]
[1742839887495,0.93928,88376.0,88343.0,0.056596]
[1742839887700,0.2863618,88368.0,88359.0,0.1131723]
[1742839887907,0.0565804,88368.0,88359.0,0.5238523]
[1742839888109,0.0565787,88371.0,88365.0,0.1131647]
[1742839888305,0.23612724,88366.0,88365.0,0.7146047]
[1742839888709,0.26921946,88373.0,88372.0,0.1131557]
[1742839889007,0.27009946,88373.0,88372.0,0.8947557]
[1742839889614,0.27009946,88373.0,88372.0,1.0752557]
[1742839890112,0.27509946,88373.0,88372.0,1.0752557]
[1742839891610,0.27909946,88373.0,88372.0,1.0752557]
[1742839892404,0.00988,88373.0,88372.0,1.0752557]
[1742839892805,0.009,88373.0,88372.0,1.0752557]
[1742839893613,0.009,88373.0,88372.0,1.1918557]
[1742839896910,0.009,88373.0,88372.0,1.1818557]
[1742839897110,0.009,88373.0,88372.0,1.1918557]
[1742839899720,0.0989,88373.0,88372.0,1.1918557]
[1742839900815,0.009,88373.0,88372.0,1.1918557]
[1742839902415,0.113133,88390.0,88373.0,0.0565766]
[1742839902618,0.1771,88391.0,88390.0,0.1131327]
[1742839902819,0.1779,88391.0,88390.0,0.4239327]
[1742839903014,0.17770001,88391.0,88390.0,0.4239327]
[1742839903215,0.29085738,88391.0,88390.0,0.4239327]
[1742839904426,0.29025737,88391.0,88390.0,0.4239327]
[1742839905223,0.29525737,88391.0,88390.0,0.4249327]
[1742839905529,0.29605737,88391.0,88390.0,0.4249327]
[1742839905719,0.30025737,88391.0,88390.0,0.4249327]
[1742839905921,0.30085738,88391.0,88390.0,0.4249327]
[1742839906921,0.41338877,88391.0,88390.0,0.43629047]
[1742839907123,0.30109737,88391.0,88390.0,0.43629047]
[1742839907322,0.30025737,88391.0,88390.0,0.43629047]
[1742839907524,0.30105737,88391.0,88390.0,0.43629047]
[1742839907924,0.41418877,88391.0,88390.0,0.43629047]
[1742839908123,0.30105737,88391.0,88390.0,0.43629047]
[1742839908533,0.41418877,88391.0,88390.0,0.4249327]
[1742839908921,0.30105737,88391.0,88390.0,0.4249327]
[1742839909127,0.41418877,88391.0,88390.0,0.43636468]
[1742839909624,0.30105737,88391.0,88390.0,0.43636468]
[1742839910025,0.30025737,88391.0,88390.0,0.4249327]
[1742839910329,0.41418877,88391.0,88390.0,0.4249327]
[1742839911325,0.41418877,88391.0,88390.0,0.3118]
[1742839911926,0.30105737,88391.0,88390.0,0.4249327]
[1742839912118,0.30105737,88391.0,88390.0,0.43640007]
[1742839912318,0.30025737,88391.0,88390.0,0.43640007]
[1742839912725,0.30109737,88391.0,88390.0,0.43640007]
[1742839913129,0.41422877,88391.0,88390.0,0.43640007]
[1742839913329,0.41422877,88391.0,88390.0,0.7857327]
[1742839915225,0.30109737,88391.0,88390.0,0.7857327]
[1742839916330,0.30109737,88391.0,88390.0,0.8719327]
[1742839917127,0.41422877,88391.0,88390.0,0.8719327]
[1742839917326,0.41422877,88391.0,88390.0,0.9637327]
[1742839917932,0.30109737,88391.0,88390.0,0.9637327]
[1742839918324,0.41422877,88391.0,88390.0,0.9637327]
[1742839920333,0.30109737,88391.0,88390.0,0.9637327]
[1742839920533,0.30025737,88391.0,88390.0,0.9637327]
[1742839921126,0.41338877,88391.0,88390.0,0.9637327]
[1742839921328,0.41418877,88391.0,88390.0,0.9637327]
[1742839926336,0.30105737,88391.0,88390.0,0.9637327]
[1742839926532,0.30025737,88391.0,88390.0,0.9637327]
[1742839927731,0.30025737,88391.0,88390.0,1.16710169]
[1742839928333,0.30109737,88391.0,88390.0,1.16710169]
[1742839929835,0.41422877,88391.0,88390.0,1.16710169]
[1742839930236,0.30109737,88391.0,88390.0,1.16710169]
[1742839930430,0.30025737,88391.0,88390.0,1.16710169]
[1742839930642,0.30025737,88391.0,88390.0,0.9637327]
[1742839930832,0.30109737,88391.0,88390.0,0.9637327]
[1742839931341,0.41422877,88391.0,88390.0,0.9637327]
[1742839931733,0.30109737,88391.0,88390.0,0.9637327]
[1742839931933,0.30025737,88391.0,88390.0,0.9637327]
[1742839932340,0.30085738,88391.0,88390.0,0.9637327]
[1742839933639,0.30113737,88391.0,88390.0,0.9637327]
[1742839934945,0.41426877,88391.0,88390.0,0.9637327]
[1742839935148,0.30113737,88391.0,88390.0,0.9637327]
[1742839936049,0.41426877,88391.0,88390.0,0.9637327]
[1742839936235,0.30113737,88391.0,88390.0,0.9637327]
[1742839938352,0.30025737,88391.0,88390.0,0.9637327]
[1742839938545,0.30105737,88391.0,88390.0,1.37321719]
[1742839938940,0.41418877,88391.0,88390.0,1.37321719]
[1742839939140,0.30105737,88391.0,88390.0,1.37321719]
[1742839939440,0.30025737,88391.0,88390.0,1.37321719]